[Event "*** SCC Grand Prix: Titled Tuesday Blitz"]
[Site "Chess.com"]
[Date "2020.08.04"]
[Round "2"]
[White "Infernal_XaM"]
[Black "Fighter008"]
[Result "0-1"]
[WhiteElo "2911"]
[BlackElo "2616"]
[TimeControl "180+1"]
[EndTime "14:05:17 PDT"]
[Termination "Fighter008 won by resignation"]

1. d4 {[%clk 0:03:00.9]} 1... Nf6 {[%clk 0:02:59.5]} 2. c4 {[%clk 0:03:01.8]}
2... g6 {[%clk 0:02:59.6]} 3. Nc3 {[%clk 0:03:02.1]} 3... Bg7 {[%clk 0:03:00]}
4. e4 {[%clk 0:03:02.4]} 4... d6 {[%clk 0:03:00.6]} 5. Nf3 {[%clk 0:03:02.8]}
5... O-O {[%clk 0:03:01.2]} 6. Be2 {[%clk 0:03:03.4]} 6... e5 {[%clk 0:03:01.7]}
7. O-O {[%clk 0:03:03.2]} 7... Nc6 {[%clk 0:03:01.7]} 8. d5 {[%clk 0:03:03.6]}
8... Ne7 {[%clk 0:03:01.8]} 9. b4 {[%clk 0:03:04.2]} 9... Nh5 {[%clk 0:03:01.7]}
10. Re1 {[%clk 0:03:00.7]} 10... Nf4 {[%clk 0:03:01.2]} 11. Bf1 {[%clk
0:02:59.8]} 11... a5 {[%clk 0:03:01]} 12. bxa5 {[%clk 0:02:58.5]} 12... Rxa5
{[%clk 0:03:00.8]} 13. a4 {[%clk 0:02:59]} 13... c5 {[%clk 0:02:58.4]} 14. Bd2
{[%clk 0:02:58.7]} 14... Ra6 {[%clk 0:02:57.5]} 15. Qb1 {[%clk 0:02:53.7]} 15...
h6 {[%clk 0:02:42.9]} 16. Ra3 {[%clk 0:02:42.4]} 16... g5 {[%clk 0:02:39.6]} 17.
g3 {[%clk 0:02:19.8]} 17... Nh3+ {[%clk 0:02:33.2]} 18. Kg2 {[%clk 0:02:18.1]}
18... f5 {[%clk 0:02:14.2]} 19. exf5 {[%clk 0:02:17.4]} 19... Nxf5 {[%clk
0:02:10.3]} 20. Ne4 {[%clk 0:02:16.4]} 20... Nd4 {[%clk 0:02:07.3]} 21. Nxd4
{[%clk 0:02:14.8]} 21... exd4 {[%clk 0:02:07]} 22. f3 {[%clk 0:02:13.4]} 22...
Qd7 {[%clk 0:01:38.9]} 23. a5 {[%clk 0:02:09.1]} 23... Qf7 {[%clk 0:01:30.1]}
24. Qd1 {[%clk 0:01:52]} 24... Bf5 {[%clk 0:01:14.4]} 25. Rb3 {[%clk 0:01:45.2]}
25... Qg6 {[%clk 0:01:05.1]} 26. Rxb7 {[%clk 0:01:36.2]} 26... g4 {[%clk
0:01:05.4]} 27. Bd3 {[%clk 0:01:29.4]} 27... gxf3+ {[%clk 0:01:00.4]} 28. Qxf3
{[%clk 0:01:28.5]} 28... Bg4 {[%clk 0:00:42.3]} 29. Nf6+ {[%clk 0:01:28.1]}
29... Rxf6 {[%clk 0:00:39.3]} 30. Rb8+ {[%clk 0:01:17.9]} 30... Bf8 {[%clk
0:00:39]} 31. Bxg6 {[%clk 0:00:50.1]} 31... Bxf3+ {[%clk 0:00:33.4]} 32. Kxh3
{[%clk 0:00:49.7]} 32... Rxg6 {[%clk 0:00:34]} 33. Ree8 {[%clk 0:00:42.5]} 33...
Rf6 {[%clk 0:00:33.2]} 34. Re6 {[%clk 0:00:42.7]} 34... Rf7 {[%clk 0:00:18]} 35.
Bxh6 {[%clk 0:00:12.3]} 35... Be2 {[%clk 0:00:18.2]} 36. Bxf8 {[%clk 0:00:11]}
36... Rxf8 {[%clk 0:00:17.2]} 37. Rxf8+ {[%clk 0:00:10.4]} 37... Kxf8 {[%clk
0:00:17.7]} 38. Rxe2 {[%clk 0:00:11.3]} 38... Rxa5 {[%clk 0:00:18.3]} 39. Kg4
{[%clk 0:00:11.7]} 39... Ra4 {[%clk 0:00:16.7]} 40. Kf5 {[%clk 0:00:11.2]} 40...
Rxc4 {[%clk 0:00:16.1]} 41. Ke6 {[%clk 0:00:11.8]} 41... Rc1 {[%clk 0:00:13]}
42. Kxd6 {[%clk 0:00:11.6]} 42... d3 {[%clk 0:00:13.3]} 43. Rf2+ {[%clk
0:00:11.3]} 43... Ke8 {[%clk 0:00:13.3]} 44. Kc7 {[%clk 0:00:11.8]} 44... Ra1
{[%clk 0:00:07.9]} 45. d6 {[%clk 0:00:12.1]} 45... Ra7+ {[%clk 0:00:07.8]} 46.
Kb6 {[%clk 0:00:11]} 46... c4 {[%clk 0:00:06]} 47. Kxa7 {[%clk 0:00:10]} 47...
c3 {[%clk 0:00:05.9]} 48. d7+ {[%clk 0:00:03.8]} 48... Kxd7 {[%clk 0:00:03.9]}
49. Rf3 {[%clk 0:00:04.3]} 49... d2 {[%clk 0:00:04.1]} 50. Rd3+ {[%clk
0:00:04.5]} 50... Ke7 {[%clk 0:00:03.9]} 51. Kb6 {[%clk 0:00:04.7]} 51... c2
{[%clk 0:00:03.5]} 52. Rxd2 {[%clk 0:00:05.2]} 52... c1=Q {[%clk 0:00:03.8]} 53.
Re2+ {[%clk 0:00:05.8]} 53... Kf7 {[%clk 0:00:03.6]} 54. Re5 {[%clk 0:00:04.8]}
54... Qb2+ {[%clk 0:00:03.3]} 55. Rb5 {[%clk 0:00:04.1]} 55... Qxh2 {[%clk
0:00:03.8]} 56. g4 {[%clk 0:00:04.6]} 56... Qg1+ {[%clk 0:00:03.5]} 57. Kc6
{[%clk 0:00:04.5]} 57... Qxg4 {[%clk 0:00:03.9]} 58. Rd5 {[%clk 0:00:04.9]}
58... Qe4 {[%clk 0:00:04]} 59. Kc5 {[%clk 0:00:05]} 59... Ke6 {[%clk 0:00:04.2]}
60. Rd6+ {[%clk 0:00:05.5]} 60... Ke5 {[%clk 0:00:03.8]} 61. Rd7 {[%clk
0:00:05.3]} 61... Qc2+ {[%clk 0:00:04.2]} 62. Kb6 {[%clk 0:00:05.4]} 62... Qb2+
{[%clk 0:00:04.7]} 63. Kc6 {[%clk 0:00:05.4]} 63... Qc3+ {[%clk 0:00:05.3]} 64.
Kb6 {[%clk 0:00:05.9]} 64... Qb4+ {[%clk 0:00:05.9]} 65. Kc6 {[%clk 0:00:06.3]}
65... Qc4+ {[%clk 0:00:06.6]} 66. Kb6 {[%clk 0:00:06.6]} 66... Ke6 {[%clk
0:00:07.2]} 67. Rc7 {[%clk 0:00:06.3]} 67... Qb4+ {[%clk 0:00:07.4]} 68. Kc6
{[%clk 0:00:06.8]} 68... Qc3+ {[%clk 0:00:07.4]} 69. Kb7 {[%clk 0:00:06.3]}
69... Qb2+ {[%clk 0:00:07.9]} 70. Kc6 {[%clk 0:00:06.6]} 70... Qd2 {[%clk
0:00:07.5]} 71. Rc8 {[%clk 0:00:06.4]} 71... Qc3+ {[%clk 0:00:07.1]} 72. Kb7
{[%clk 0:00:06.7]} 72... Qb4+ {[%clk 0:00:07.4]} 73. Kc6 {[%clk 0:00:06.5]}
73... Qc4+ {[%clk 0:00:07.5]} 74. Kb7 {[%clk 0:00:06.7]} 74... Qb5+ {[%clk
0:00:07.7]} 75. Kc7 {[%clk 0:00:07.2]} 75... Qc5+ {[%clk 0:00:07.8]} 76. Kb7
{[%clk 0:00:07.2]} 76... Qd5+ {[%clk 0:00:08.2]} 77. Kc7 {[%clk 0:00:06.7]}
77... Ke7 {[%clk 0:00:08.5]} 78. Rb8 {[%clk 0:00:04.8]} 78... Qd6+ {[%clk
0:00:08.1]} 79. Kb7 {[%clk 0:00:04.8]} 79... Kd7 {[%clk 0:00:08.3]} 80. Rg8
{[%clk 0:00:02.3]} 80... Qd5+ {[%clk 0:00:08.1]} 0-1

[Event "*** SCC Grand Prix: Titled Tuesday Blitz"]
[Site "Chess.com"]
[Date "2020.08.04"]
[Round "3"]
[White "penguingm1"]
[Black "Alberquintin"]
[Result "1-0"]
[WhiteElo "2942"]
[BlackElo "2475"]
[TimeControl "180+1"]
[EndTime "14:06:56 PDT"]
[Termination "penguingm1 won by resignation"]

1. d4 {[%clk 0:03:00.9]} 1... Nf6 {[%clk 0:02:59.6]} 2. c4 {[%clk 0:02:50.6]}
2... g6 {[%clk 0:02:55.2]} 3. f3 {[%clk 0:02:50.4]} 3... Bg7 {[%clk 0:02:52.8]}
4. e4 {[%clk 0:02:50.2]} 4... d6 {[%clk 0:02:53.1]} 5. Nc3 {[%clk 0:02:49.5]}
5... O-O {[%clk 0:02:53.6]} 6. Nge2 {[%clk 0:02:47.8]} 6... Nc6 {[%clk
0:02:53.2]} 7. Be3 {[%clk 0:02:47.2]} 7... a6 {[%clk 0:02:53.3]} 8. Rb1 {[%clk
0:02:45.9]} 8... Rb8 {[%clk 0:02:51.2]} 9. b4 {[%clk 0:02:43.4]} 9... b5 {[%clk
0:02:50.1]} 10. cxb5 {[%clk 0:02:43.3]} 10... axb5 {[%clk 0:02:49.8]} 11. d5
{[%clk 0:02:43.8]} 11... Ne5 {[%clk 0:02:42.4]} 12. Nd4 {[%clk 0:02:43.6]} 12...
Nc4 {[%clk 0:02:41]} 13. Bxc4 {[%clk 0:02:43.6]} 13... bxc4 {[%clk 0:02:41.9]}
14. Nc6 {[%clk 0:02:44.3]} 1-0

[Event "*** SCC Grand Prix: Titled Tuesday Blitz"]
[Site "Chess.com"]
[Date "2020.08.04"]
[Round "3"]
[White "boasovietica"]
[Black "ftorodent"]
[Result "0-1"]
[WhiteElo "2418"]
[BlackElo "2664"]
[TimeControl "180+1"]
[EndTime "14:08:09 PDT"]
[Termination "ftorodent won by resignation"]

1. e4 {[%clk 0:03:00.9]} 1... c5 {[%clk 0:02:59.3]} 2. Nf3 {[%clk 0:03:00.5]}
2... e6 {[%clk 0:02:59.3]} 3. Nc3 {[%clk 0:02:59.7]} 3... a6 {[%clk 0:02:58.8]}
4. g3 {[%clk 0:02:59.6]} 4... b5 {[%clk 0:02:58]} 5. Bg2 {[%clk 0:02:59.8]} 5...
Bb7 {[%clk 0:02:58.7]} 6. d3 {[%clk 0:03:00.3]} 6... d6 {[%clk 0:02:58.6]} 7.
O-O {[%clk 0:03:00.6]} 7... Nd7 {[%clk 0:02:56.3]} 8. Ng5 {[%clk 0:02:56.1]}
8... Ngf6 {[%clk 0:02:50]} 9. f4 {[%clk 0:02:55.2]} 9... Qc7 {[%clk 0:02:43.1]}
10. f5 {[%clk 0:02:28.6]} 10... e5 {[%clk 0:02:40.5]} 11. Ne6 {[%clk 0:02:28.6]}
11... fxe6 {[%clk 0:02:31.8]} 12. fxe6 {[%clk 0:02:29.5]} 12... Nb6 {[%clk
0:02:28.5]} 13. Qh5+ {[%clk 0:02:26.6]} 13... Nxh5 {[%clk 0:02:26.6]} 0-1

[Event "*** SCC Grand Prix: Titled Tuesday Blitz"]
[Site "Chess.com"]
[Date "2020.08.04"]
[Round "3"]
[White "SiddharthGMJagadeesh"]
[Black "Sanyura"]
[Result "0-1"]
[WhiteElo "2581"]
[BlackElo "2408"]
[TimeControl "180+1"]
[EndTime "14:09:01 PDT"]
[Termination "Sanyura won by checkmate"]

1. d4 {[%clk 0:03:00.9]} 1... Nf6 {[%clk 0:02:58.7]} 2. Nf3 {[%clk 0:02:59.2]}
2... g6 {[%clk 0:02:57.9]} 3. c3 {[%clk 0:02:59.2]} 3... Bg7 {[%clk 0:02:58]} 4.
Bg5 {[%clk 0:02:59.8]} 4... O-O {[%clk 0:02:58.4]} 5. Nbd2 {[%clk 0:03:00.2]}
5... d6 {[%clk 0:02:58.8]} 6. a4 {[%clk 0:02:59.2]} 6... a6 {[%clk 0:02:57.6]}
7. e4 {[%clk 0:02:57.8]} 7... b6 {[%clk 0:02:57.6]} 8. Bc4 {[%clk 0:02:56.1]}
8... Bb7 {[%clk 0:02:57.5]} 9. e5 {[%clk 0:02:52.9]} 9... Nd5 {[%clk 0:02:50]}
10. Qb3 {[%clk 0:02:43.3]} 10... dxe5 {[%clk 0:02:48.5]} 11. Nxe5 {[%clk
0:02:39.4]} 11... f6 {[%clk 0:02:36.8]} 12. Bh4 {[%clk 0:01:35.6]} 12... fxe5
{[%clk 0:02:35.4]} 13. O-O-O {[%clk 0:01:36.1]} 13... b5 {[%clk 0:02:32.8]} 14.
axb5 {[%clk 0:01:32]} 14... axb5 {[%clk 0:02:33.7]} 15. Qxb5 {[%clk 0:01:30.9]}
15... Bc6 {[%clk 0:02:30.1]} 16. Qc5 {[%clk 0:01:29.7]} 16... exd4 {[%clk
0:02:22.3]} 17. Bxe7 {[%clk 0:01:22.8]} 17... Ra1+ {[%clk 0:02:14]} 18. Kc2
{[%clk 0:01:21.8]} 18... d3+ {[%clk 0:02:13.6]} 19. Kb3 {[%clk 0:01:21.3]} 19...
Ba4# {[%clk 0:02:12.7]} 0-1

[Event "*** SCC Grand Prix: Titled Tuesday Blitz"]
[Site "Chess.com"]
[Date "2020.08.04"]
[Round "3"]
[White "Marreuh"]
[Black "shnitez"]
[Result "0-1"]
[WhiteElo "2129"]
[BlackElo "2488"]
[TimeControl "180+1"]
[EndTime "14:09:16 PDT"]
[Termination "shnitez won by resignation"]

1. e4 {[%clk 0:03:00.9]} 1... c5 {[%clk 0:02:58.5]} 2. c3 {[%clk 0:03:01]} 2...
Nf6 {[%clk 0:02:57.8]} 3. e5 {[%clk 0:03:01.1]} 3... Nd5 {[%clk 0:02:58.2]} 4.
d4 {[%clk 0:03:01.5]} 4... cxd4 {[%clk 0:02:59.1]} 5. cxd4 {[%clk 0:03:01.9]}
5... e6 {[%clk 0:02:58.2]} 6. Nc3 {[%clk 0:03:00.4]} 6... d6 {[%clk 0:02:55.7]}
7. Nxd5 {[%clk 0:02:57]} 7... exd5 {[%clk 0:02:55.7]} 8. a3 {[%clk 0:02:55.4]}
8... Nc6 {[%clk 0:02:53.6]} 9. Bf4 {[%clk 0:02:47.6]} 9... dxe5 {[%clk
0:02:25.7]} 10. dxe5 {[%clk 0:02:48.5]} 10... Bc5 {[%clk 0:02:12.6]} 11. h3
{[%clk 0:02:35.7]} 11... O-O {[%clk 0:01:57]} 12. Nf3 {[%clk 0:02:35.8]} 12...
Qb6 {[%clk 0:01:54.7]} 13. Qd2 {[%clk 0:02:35.5]} 13... Bf5 {[%clk 0:01:43.7]}
14. b4 {[%clk 0:02:27.4]} 14... Nxb4 {[%clk 0:01:41]} 15. Rc1 {[%clk 0:01:51.7]}
15... Nc6 {[%clk 0:01:37.4]} 16. a4 {[%clk 0:01:35.1]} 16... Bb4 {[%clk
0:01:34.9]} 0-1

[Event "*** SCC Grand Prix: Titled Tuesday Blitz"]
[Site "Chess.com"]
[Date "2020.08.04"]
[Round "3"]
[White "The_Machine04"]
[Black "dopolian"]
[Result "0-1"]
[WhiteElo "2250"]
[BlackElo "2491"]
[TimeControl "180+1"]
[EndTime "14:09:33 PDT"]
[Termination "dopolian won by resignation"]

1. d4 {[%clk 0:02:50.5]} 1... Nf6 {[%clk 0:03:00.1]} 2. Bg5 {[%clk 0:02:48]}
2... c5 {[%clk 0:02:58.1]} 3. Bxf6 {[%clk 0:02:46.8]} 3... gxf6 {[%clk
0:02:57.9]} 4. d5 {[%clk 0:02:45.4]} 4... Qb6 {[%clk 0:02:58.1]} 5. Qc1 {[%clk
0:02:44.4]} 5... f5 {[%clk 0:02:57.3]} 6. c4 {[%clk 0:02:44]} 6... Bg7 {[%clk
0:02:54.6]} 7. Nc3 {[%clk 0:02:44.4]} 7... Na6 {[%clk 0:02:40.8]} 8. e3 {[%clk
0:02:39.9]} 8... Nc7 {[%clk 0:02:39.7]} 9. Bd3 {[%clk 0:02:38]} 9... Qg6 {[%clk
0:02:29.1]} 10. Nge2 {[%clk 0:02:27.8]} 10... d6 {[%clk 0:02:23]} 11. Qc2 {[%clk
0:02:16.8]} 11... e5 {[%clk 0:02:05.7]} 12. Ng3 {[%clk 0:01:52.5]} 12... e4
{[%clk 0:02:05.1]} 13. Be2 {[%clk 0:01:52.5]} 13... h5 {[%clk 0:02:01.5]} 14. h4
{[%clk 0:01:47.1]} 14... Be5 {[%clk 0:02:01.2]} 15. Nf1 {[%clk 0:01:40.9]} 15...
Qxg2 {[%clk 0:01:57.3]} 16. Ng3 {[%clk 0:01:15.4]} 16... Bxg3 {[%clk 0:01:53]}
17. O-O-O {[%clk 0:01:15.1]} 17... Bxf2 {[%clk 0:01:45.6]} 0-1

[Event "*** SCC Grand Prix: Titled Tuesday Blitz"]
[Site "Chess.com"]
[Date "2020.08.04"]
[Round "3"]
[White "isainz"]
[Black "ChadBiryani"]
[Result "0-1"]
[WhiteElo "2130"]
[BlackElo "2344"]
[TimeControl "180+1"]
[EndTime "14:09:34 PDT"]
[Termination "ChadBiryani won by resignation"]

1. e4 {[%clk 0:03:00.9]} 1... d5 {[%clk 0:02:59.5]} 2. exd5 {[%clk 0:02:58.9]}
2... Qxd5 {[%clk 0:03:00.4]} 3. Nc3 {[%clk 0:02:58.5]} 3... Qe6+ {[%clk
0:03:00.7]} 4. Be2 {[%clk 0:02:51.3]} 4... Qg6 {[%clk 0:03:00.4]} 5. Bf3 {[%clk
0:02:48.9]} 5... e5 {[%clk 0:02:59.5]} 6. d3 {[%clk 0:02:46.6]} 6... Nf6 {[%clk
0:02:59.2]} 7. Nge2 {[%clk 0:02:41.6]} 7... Bd6 {[%clk 0:02:57.4]} 8. O-O {[%clk
0:02:36.6]} 8... Nc6 {[%clk 0:02:55.2]} 9. Ng3 {[%clk 0:02:33]} 9... Bg4 {[%clk
0:02:43.5]} 10. Re1 {[%clk 0:02:25.8]} 10... O-O {[%clk 0:02:39.5]} 11. Nge4
{[%clk 0:02:14.8]} 11... Bxf3 {[%clk 0:02:28.6]} 12. Qxf3 {[%clk 0:02:12.9]}
12... Nd4 {[%clk 0:02:27.2]} 13. Qd1 {[%clk 0:02:12.3]} 13... Nxe4 {[%clk
0:02:22.9]} 14. Nxe4 {[%clk 0:02:09.8]} 14... f5 {[%clk 0:02:23.2]} 15. Nxd6
{[%clk 0:02:08.9]} 15... cxd6 {[%clk 0:02:24]} 16. c3 {[%clk 0:02:08]} 16... Nc6
{[%clk 0:02:21.5]} 17. Qb3+ {[%clk 0:02:07.4]} 17... Rf7 {[%clk 0:02:19.3]} 18.
f4 {[%clk 0:01:57.5]} 18... Re8 {[%clk 0:02:15.7]} 19. fxe5 {[%clk 0:01:56]}
19... Nxe5 {[%clk 0:02:11.6]} 20. Bf4 {[%clk 0:01:48.4]} 20... Nf3+ {[%clk
0:02:08.8]} 21. Kf2 {[%clk 0:01:42.4]} 21... Nxe1 {[%clk 0:02:07.8]} 22. Rxe1
{[%clk 0:01:42.3]} 22... Rxe1 {[%clk 0:02:06.9]} 23. Kxe1 {[%clk 0:01:42]} 23...
Qxg2 {[%clk 0:02:06.9]} 24. Qe6 {[%clk 0:01:39.1]} 24... Qg1+ {[%clk 0:01:56]}
25. Ke2 {[%clk 0:01:34.7]} 25... Qg4+ {[%clk 0:01:54.1]} 26. Ke1 {[%clk
0:01:27.3]} 26... Qxf4 {[%clk 0:01:51.1]} 27. Qe8+ {[%clk 0:01:26.4]} 27... Rf8
{[%clk 0:01:51.2]} 0-1

[Event "*** SCC Grand Prix: Titled Tuesday Blitz"]
[Site "Chess.com"]
[Date "2020.08.04"]
[Round "3"]
[White "LyonBeast"]
[Black "mishikomchedlishvili"]
[Result "1-0"]
[WhiteElo "3035"]
[BlackElo "2759"]
[TimeControl "180+1"]
[EndTime "14:09:47 PDT"]
[Termination "LyonBeast won by resignation"]

1. e4 {[%clk 0:03:00.9]} 1... d6 {[%clk 0:02:57.1]} 2. d4 {[%clk 0:02:59.7]}
2... Nf6 {[%clk 0:02:56.5]} 3. Nc3 {[%clk 0:02:59.8]} 3... g6 {[%clk 0:02:56.3]}
4. Nf3 {[%clk 0:02:55.5]} 4... Bg7 {[%clk 0:02:55.4]} 5. Be3 {[%clk 0:02:53.3]}
5... c6 {[%clk 0:02:53.1]} 6. h3 {[%clk 0:02:53.1]} 6... O-O {[%clk 0:02:50.9]}
7. a4 {[%clk 0:02:52.2]} 7... Nbd7 {[%clk 0:02:49.2]} 8. Bd3 {[%clk 0:02:51.2]}
8... Qc7 {[%clk 0:02:47.5]} 9. O-O {[%clk 0:02:48.3]} 9... b6 {[%clk 0:02:46]}
10. Ne2 {[%clk 0:02:45.5]} 10... Bb7 {[%clk 0:02:37.9]} 11. Ng3 {[%clk
0:02:44.1]} 11... a6 {[%clk 0:02:33.5]} 12. c3 {[%clk 0:02:43.6]} 12... b5
{[%clk 0:02:20.5]} 13. Qd2 {[%clk 0:02:39.8]} 13... Rfe8 {[%clk 0:02:16.4]} 14.
Rfe1 {[%clk 0:02:37.5]} 14... Nb6 {[%clk 0:01:58.4]} 15. Bh6 {[%clk 0:02:34.9]}
15... Nxa4 {[%clk 0:01:10.4]} 16. e5 {[%clk 0:02:30.8]} 16... dxe5 {[%clk
0:01:09.7]} 17. dxe5 {[%clk 0:02:26.8]} 17... Nd5 {[%clk 0:01:09.7]} 18. Bxg7
{[%clk 0:02:25.1]} 18... Kxg7 {[%clk 0:01:09.7]} 19. Nh5+ {[%clk 0:02:24.7]}
19... gxh5 {[%clk 0:00:48.4]} 20. Qg5+ {[%clk 0:02:24.3]} 20... Kh8 {[%clk
0:00:48.6]} 21. Qf5 {[%clk 0:02:24.6]} 1-0

[Event "*** SCC Grand Prix: Titled Tuesday Blitz"]
[Site "Chess.com"]
[Date "2020.08.04"]
[Round "3"]
[White "DenLaz"]
[Black "IMHansNiemann"]
[Result "0-1"]
[WhiteElo "2710"]
[BlackElo "2893"]
[TimeControl "180+1"]
[EndTime "14:09:51 PDT"]
[Termination "IMHansNiemann won by resignation"]

1. d4 {[%clk 0:03:00.9]} 1... g6 {[%clk 0:02:58.8]} 2. Nf3 {[%clk 0:02:58.9]}
2... Bg7 {[%clk 0:02:58.6]} 3. c4 {[%clk 0:02:59.6]} 3... d6 {[%clk 0:02:58.5]}
4. g3 {[%clk 0:02:58.9]} 4... Nf6 {[%clk 0:02:58.4]} 5. Bg2 {[%clk 0:02:59.4]}
5... O-O {[%clk 0:02:58.8]} 6. O-O {[%clk 0:02:59.3]} 6... Nc6 {[%clk
0:02:59.5]} 7. Nc3 {[%clk 0:02:59.9]} 7... Bg4 {[%clk 0:02:59.4]} 8. d5 {[%clk
0:02:59.1]} 8... Na5 {[%clk 0:02:58.5]} 9. Nd2 {[%clk 0:02:59.3]} 9... c5 {[%clk
0:02:58.2]} 10. h3 {[%clk 0:02:59.2]} 10... Bd7 {[%clk 0:02:55.2]} 11. Qc2
{[%clk 0:02:59.4]} 11... e5 {[%clk 0:02:54.8]} 12. a3 {[%clk 0:02:44.2]} 12...
Rc8 {[%clk 0:02:51.4]} 13. b3 {[%clk 0:02:41.5]} 13... a6 {[%clk 0:02:51.1]} 14.
Bb2 {[%clk 0:02:41.3]} 14... b5 {[%clk 0:02:51.2]} 15. e4 {[%clk 0:02:39.7]}
15... Rb8 {[%clk 0:02:50.9]} 16. Nd1 {[%clk 0:02:35.2]} 16... Nh5 {[%clk
0:02:46.7]} 17. Bc3 {[%clk 0:02:31.9]} 17... f5 {[%clk 0:02:43.5]} 18. b4 {[%clk
0:02:21.1]} 18... Nxc4 {[%clk 0:02:34.6]} 19. Nxc4 {[%clk 0:02:20.4]} 19... bxc4
{[%clk 0:02:35.5]} 20. bxc5 {[%clk 0:02:20.3]} 20... dxc5 {[%clk 0:02:36.4]} 21.
Ne3 {[%clk 0:01:51.5]} 21... f4 {[%clk 0:02:35.1]} 22. Nxc4 {[%clk 0:01:51.8]}
22... f3 {[%clk 0:02:32.3]} 23. Bh1 {[%clk 0:01:51]} 23... Bxh3 {[%clk
0:02:28.8]} 24. Rfb1 {[%clk 0:01:48.4]} 24... Rxb1+ {[%clk 0:02:27.4]} 25. Rxb1
{[%clk 0:01:49.3]} 25... Nxg3 {[%clk 0:02:27]} 26. fxg3 {[%clk 0:01:15.3]} 26...
f2+ {[%clk 0:02:26.4]} 27. Kh2 {[%clk 0:01:15.9]} 27... f1=Q {[%clk 0:02:25.6]}
28. Rxf1 {[%clk 0:01:16.2]} 28... Bxf1 {[%clk 0:02:26.5]} 29. Nxe5 {[%clk
0:01:16.6]} 29... Qg5 {[%clk 0:02:25.3]} 30. Nf3 {[%clk 0:01:06.3]} 30... Qh6+
{[%clk 0:02:22.2]} 31. Kg1 {[%clk 0:01:05.6]} 31... Qe3+ {[%clk 0:02:22]} 32.
Kxf1 {[%clk 0:01:06.1]} 32... Rxf3+ {[%clk 0:02:20]} 33. Bxf3 {[%clk 0:01:06]}
33... Qxf3+ {[%clk 0:02:20.9]} 34. Kg1 {[%clk 0:01:04.2]} 34... Qxg3+ {[%clk
0:02:20.1]} 35. Kf1 {[%clk 0:01:03.8]} 35... Qf3+ {[%clk 0:02:20.1]} 36. Kg1
{[%clk 0:01:03.8]} 36... Bxc3 {[%clk 0:02:20.6]} 0-1

[Event "*** SCC Grand Prix: Titled Tuesday Blitz"]
[Site "Chess.com"]
[Date "2020.08.04"]
[Round "3"]
[White "Baronessa08"]
[Black "BlackBoarder"]
[Result "1-0"]
[WhiteElo "2389"]
[BlackElo "2559"]
[TimeControl "180+1"]
[EndTime "14:10:11 PDT"]
[Termination "Baronessa08 won by resignation"]

1. c4 {[%clk 0:02:59.5]} 1... e6 {[%clk 0:02:56.2]} 2. d4 {[%clk 0:02:58.6]}
2... Nf6 {[%clk 0:02:55.1]} 3. Nc3 {[%clk 0:02:58.9]} 3... Bb4 {[%clk
0:02:51.7]} 4. Qc2 {[%clk 0:02:58.1]} 4... O-O {[%clk 0:02:50.9]} 5. a3 {[%clk
0:02:57.6]} 5... Bxc3+ {[%clk 0:02:51]} 6. Qxc3 {[%clk 0:02:58.5]} 6... b5
{[%clk 0:02:51.4]} 7. b3 {[%clk 0:02:55.5]} 7... Bb7 {[%clk 0:02:28.2]} 8. e3
{[%clk 0:02:52.4]} 8... Ne4 {[%clk 0:02:05.2]} 9. Qc2 {[%clk 0:02:52]} 9... f5
{[%clk 0:02:01.2]} 10. Nf3 {[%clk 0:02:38.1]} 10... bxc4 {[%clk 0:01:33.5]} 11.
bxc4 {[%clk 0:02:36.4]} 11... Nc6 {[%clk 0:01:30.4]} 12. Bd3 {[%clk 0:02:31.9]}
12... Qf6 {[%clk 0:01:15.6]} 13. Bb2 {[%clk 0:02:02.5]} 13... Rab8 {[%clk
0:01:04.6]} 14. d5 {[%clk 0:01:45.1]} 14... Qg6 {[%clk 0:01:00.8]} 15. dxc6
{[%clk 0:01:44.9]} 15... Qxg2 {[%clk 0:01:00.1]} 16. Rg1 {[%clk 0:01:42.1]}
16... Qxf3 {[%clk 0:00:37.9]} 17. Rxg7+ {[%clk 0:01:40.5]} 1-0

[Event "*** SCC Grand Prix: Titled Tuesday Blitz"]
[Site "Chess.com"]
[Date "2020.08.04"]
[Round "3"]
[White "Jenia84"]
[Black "BikingBrian"]
[Result "1-0"]
[WhiteElo "2361"]
[BlackElo "2155"]
[TimeControl "180+1"]
[EndTime "14:10:26 PDT"]
[Termination "Jenia84 won by resignation"]

1. Nf3 {[%clk 0:03:00.9]} 1... g6 {[%clk 0:02:56.9]} 2. e4 {[%clk 0:03:00]} 2...
c5 {[%clk 0:02:56.4]} 3. c4 {[%clk 0:02:57.5]} 3... Nc6 {[%clk 0:02:55.5]} 4. d4
{[%clk 0:02:57.1]} 4... cxd4 {[%clk 0:02:56.4]} 5. Nxd4 {[%clk 0:02:57.4]} 5...
Nf6 {[%clk 0:02:56.8]} 6. Nc3 {[%clk 0:02:56.8]} 6... d6 {[%clk 0:02:56.1]} 7.
Be3 {[%clk 0:02:57.1]} 7... Ng4 {[%clk 0:02:55.6]} 8. Nxc6 {[%clk 0:02:47.3]}
8... Nxe3 {[%clk 0:02:55]} 9. Nxd8 {[%clk 0:02:39.2]} 9... Nxd1 {[%clk
0:02:54.9]} 10. Rxd1 {[%clk 0:02:33.6]} 10... Kxd8 {[%clk 0:02:54.4]} 11. c5
{[%clk 0:02:33.9]} 11... Be6 {[%clk 0:02:46.9]} 12. cxd6 {[%clk 0:02:32.5]}
12... exd6 {[%clk 0:02:46.9]} 13. e5 {[%clk 0:02:21.7]} 13... d5 {[%clk
0:02:09.2]} 14. Nxd5 {[%clk 0:02:18]} 14... Bxd5 {[%clk 0:02:09.6]} 15. Rxd5+
{[%clk 0:02:17.3]} 15... Kc7 {[%clk 0:02:09.6]} 16. Bc4 {[%clk 0:02:15.4]} 16...
Bb4+ {[%clk 0:02:09.4]} 17. Ke2 {[%clk 0:02:14.8]} 17... Rhe8 {[%clk 0:02:07.1]}
18. Rc1 {[%clk 0:02:04.3]} 18... Rad8 {[%clk 0:01:55]} 19. Rb5 {[%clk
0:01:19.5]} 19... Bd6 {[%clk 0:01:05.4]} 20. Bxf7+ {[%clk 0:01:12.3]} 20... Kb8
{[%clk 0:01:05.1]} 21. Bxe8 {[%clk 0:01:12]} 21... Rxe8 {[%clk 0:01:06]} 22. f4
{[%clk 0:01:11.6]} 22... g5 {[%clk 0:01:06.5]} 23. g3 {[%clk 0:01:11.1]} 23...
gxf4 {[%clk 0:01:06.9]} 24. gxf4 {[%clk 0:01:11.3]} 24... Bc7 {[%clk 0:01:07.3]}
25. Kf3 {[%clk 0:01:10.8]} 1-0